{"text_format":"1","workbook":"xlsx","n_sheets":11,"sheets":["البينات","اليوم1","اليوم2","اليوم3","اليوم5","اليوم6 ","اليوم7","اليوم8","اليوم9","اليوم10","المجموع"],"not_rendered":{"charts":0,"images":0,"macros":1,"external_links":0,"defined_names":0,"comments":0,"pivot_tables":0},"unopened":[],"bounds":{"document_bytes":16777216,"sheet_cells":100000,"rows_first":2000,"rows_last":500,"rows_between":2000,"halvings":0,"cell_chars":16384,"cell_head_chars":4096},"cells_cut":0,"cells_raw":0,"read":"whole","date_system":"1900"}

{"sheet":"البينات","index":0,"n_rows":7,"n_cols":3,"rows_kept":7,"cut":false,"hidden":false,"merged":[]}
[]
["التعينات","الوحدة","السعر"]
["الملح","كيلوكرام",45]
["السكر","كيلوكرام",90]
["القهوة","كيلوكرام",450]
["الموربه","كيلوكرام",110]
["الشاي","كيلوكرام",390]

{"sheet":"اليوم1","index":1,"n_rows":27,"n_cols":4,"rows_kept":27,"cut":false,"hidden":false,"merged":[]}
[]
[]
["التعينات","الكمية","السعر","المجموع"]
[null,null,{"$f":"SUMIF(البينات!$A$3:$A$29,A4,البينات!$C$3:$C$29)","v":0},{"$f":"+C4*B4","v":0}]
[null,null,{"$f":"SUMIF(البينات!$A$3:$A$29,A5,البينات!$C$3:$C$29)","v":0},{"$f":"+C5*B5","v":0}]
[null,null,{"$f":"SUMIF(البينات!$A$3:$A$29,A6,البينات!$C$3:$C$29)","v":0},0]
[null,null,{"$f":"SUMIF(البينات!$A$3:$A$29,A7,البينات!$C$3:$C$29)","v":0},0]
[null,null,{"$f":"SUMIF(البينات!$A$3:$A$29,A8,البينات!$C$3:$C$29)","v":0},0]
[null,null,{"$f":"SUMIF(البينات!$A$3:$A$29,A9,البينات!$C$3:$C$29)","v":0},0]
[null,null,{"$f":"SUMIF(البينات!$A$3:$A$29,A10,البينات!$C$3:$C$29)","v":0},0]
[null,null,{"$f":"SUMIF(البينات!$A$3:$A$29,A11,البينات!$C$3:$C$29)","v":0},0]
[null,null,{"$f":"SUMIF(البينات!$A$3:$A$29,A12,البينات!$C$3:$C$29)","v":0},0]
[null,null,{"$f":"SUMIF(البينات!$A$3:$A$29,A13,البينات!$C$3:$C$29)","v":0},0]
[null,null,{"$f":"SUMIF(البينات!$A$3:$A$29,A14,البينات!$C$3:$C$29)","v":0},0]
[null,null,{"$f":"SUMIF(البينات!$A$3:$A$29,A15,البينات!$C$3:$C$29)","v":0},0]
[null,null,{"$f":"SUMIF(البينات!$A$3:$A$29,A16,البينات!$C$3:$C$29)","v":0},0]
[null,null,{"$f":"SUMIF(البينات!$A$3:$A$29,A17,البينات!$C$3:$C$29)","v":0},0]
[null,null,{"$f":"SUMIF(البينات!$A$3:$A$29,A18,البينات!$C$3:$C$29)","v":0},0]
[null,null,{"$f":"SUMIF(البينات!$A$3:$A$29,A19,البينات!$C$3:$C$29)","v":0},0]
[null,null,{"$f":"SUMIF(البينات!$A$3:$A$29,A20,البينات!$C$3:$C$29)","v":0},0]
[null,null,{"$f":"SUMIF(البينات!$A$3:$A$29,A21,البينات!$C$3:$C$29)","v":0},0]
[null,null,{"$f":"SUMIF(البينات!$A$3:$A$29,A22,البينات!$C$3:$C$29)","v":0},0]
[null,null,{"$f":"SUMIF(البينات!$A$3:$A$29,A23,البينات!$C$3:$C$29)","v":0},0]
[null,null,{"$f":"SUMIF(البينات!$A$3:$A$29,A24,البينات!$C$3:$C$29)","v":0},0]
[null,null,{"$f":"SUMIF(البينات!$A$3:$A$29,A25,البينات!$C$3:$C$29)","v":0},0]
[null,null,{"$f":"SUMIF(البينات!$A$3:$A$29,A26,البينات!$C$3:$C$29)","v":0},0]
[null,null,null,{"$f":"SUM(D4:D26)","v":0}]

{"sheet":"اليوم2","index":2,"n_rows":27,"n_cols":4,"rows_kept":27,"cut":false,"hidden":false,"merged":[]}
[]
[]
["التعينات","الكمية","السعر","المجموع"]
[null,null,{"$f":"SUMIF(البينات!$A$3:$A$29,A4,البينات!$C$3:$C$29)","v":0},{"$f":"+C4*B4","v":0}]
[null,null,{"$f":"SUMIF(البينات!$A$3:$A$29,A5,البينات!$C$3:$C$29)","v":0},{"$f":"+C5*B5","v":0}]
[null,null,{"$f":"SUMIF(البينات!$A$3:$A$29,A6,البينات!$C$3:$C$29)","v":0},0]
[null,null,{"$f":"SUMIF(البينات!$A$3:$A$29,A7,البينات!$C$3:$C$29)","v":0},0]
[null,null,{"$f":"SUMIF(البينات!$A$3:$A$29,A8,البينات!$C$3:$C$29)","v":0},0]
[null,null,{"$f":"SUMIF(البينات!$A$3:$A$29,A9,البينات!$C$3:$C$29)","v":0},0]
[null,null,{"$f":"SUMIF(البينات!$A$3:$A$29,A10,البينات!$C$3:$C$29)","v":0},0]
[null,null,{"$f":"SUMIF(البينات!$A$3:$A$29,A11,البينات!$C$3:$C$29)","v":0},0]
[null,null,{"$f":"SUMIF(البينات!$A$3:$A$29,A12,البينات!$C$3:$C$29)","v":0},0]
[null,null,{"$f":"SUMIF(البينات!$A$3:$A$29,A13,البينات!$C$3:$C$29)","v":0},0]
[null,null,{"$f":"SUMIF(البينات!$A$3:$A$29,A14,البينات!$C$3:$C$29)","v":0},0]
[null,null,{"$f":"SUMIF(البينات!$A$3:$A$29,A15,البينات!$C$3:$C$29)","v":0},0]
[null,null,{"$f":"SUMIF(البينات!$A$3:$A$29,A16,البينات!$C$3:$C$29)","v":0},0]
[null,null,{"$f":"SUMIF(البينات!$A$3:$A$29,A17,البينات!$C$3:$C$29)","v":0},0]
[null,null,{"$f":"SUMIF(البينات!$A$3:$A$29,A18,البينات!$C$3:$C$29)","v":0},0]
[null,null,{"$f":"SUMIF(البينات!$A$3:$A$29,A19,البينات!$C$3:$C$29)","v":0},0]
[null,null,{"$f":"SUMIF(البينات!$A$3:$A$29,A20,البينات!$C$3:$C$29)","v":0},0]
[null,null,{"$f":"SUMIF(البينات!$A$3:$A$29,A21,البينات!$C$3:$C$29)","v":0},0]
[null,null,{"$f":"SUMIF(البينات!$A$3:$A$29,A22,البينات!$C$3:$C$29)","v":0},0]
[null,null,{"$f":"SUMIF(البينات!$A$3:$A$29,A23,البينات!$C$3:$C$29)","v":0},0]
[null,null,{"$f":"SUMIF(البينات!$A$3:$A$29,A24,البينات!$C$3:$C$29)","v":0},0]
[null,null,{"$f":"SUMIF(البينات!$A$3:$A$29,A25,البينات!$C$3:$C$29)","v":0},0]
[null,null,{"$f":"SUMIF(البينات!$A$3:$A$29,A26,البينات!$C$3:$C$29)","v":0},0]
[null,null,null,{"$f":"SUM(D4:D26)","v":0}]

{"sheet":"اليوم3","index":3,"n_rows":27,"n_cols":4,"rows_kept":27,"cut":false,"hidden":false,"merged":[]}
[]
[]
["التعينات","الكمية","السعر","المجموع"]
[null,null,{"$f":"SUMIF(البينات!$A$3:$A$29,A4,البينات!$C$3:$C$29)","v":0},{"$f":"+C4*B4","v":0}]
[null,null,{"$f":"SUMIF(البينات!$A$3:$A$29,A5,البينات!$C$3:$C$29)","v":0},{"$f":"+C5*B5","v":0}]
[null,null,{"$f":"SUMIF(البينات!$A$3:$A$29,A6,البينات!$C$3:$C$29)","v":0},0]
[null,null,{"$f":"SUMIF(البينات!$A$3:$A$29,A7,البينات!$C$3:$C$29)","v":0},0]
[null,null,{"$f":"SUMIF(البينات!$A$3:$A$29,A8,البينات!$C$3:$C$29)","v":0},0]
[null,null,{"$f":"SUMIF(البينات!$A$3:$A$29,A9,البينات!$C$3:$C$29)","v":0},0]
[null,null,{"$f":"SUMIF(البينات!$A$3:$A$29,A10,البينات!$C$3:$C$29)","v":0},0]
[null,null,{"$f":"SUMIF(البينات!$A$3:$A$29,A11,البينات!$C$3:$C$29)","v":0},0]
[null,null,{"$f":"SUMIF(البينات!$A$3:$A$29,A12,البينات!$C$3:$C$29)","v":0},0]
[null,null,{"$f":"SUMIF(البينات!$A$3:$A$29,A13,البينات!$C$3:$C$29)","v":0},0]
[null,null,{"$f":"SUMIF(البينات!$A$3:$A$29,A14,البينات!$C$3:$C$29)","v":0},0]
[null,null,{"$f":"SUMIF(البينات!$A$3:$A$29,A15,البينات!$C$3:$C$29)","v":0},0]
[null,null,{"$f":"SUMIF(البينات!$A$3:$A$29,A16,البينات!$C$3:$C$29)","v":0},0]
[null,null,{"$f":"SUMIF(البينات!$A$3:$A$29,A17,البينات!$C$3:$C$29)","v":0},0]
[null,null,{"$f":"SUMIF(البينات!$A$3:$A$29,A18,البينات!$C$3:$C$29)","v":0},0]
[null,null,{"$f":"SUMIF(البينات!$A$3:$A$29,A19,البينات!$C$3:$C$29)","v":0},0]
[null,null,{"$f":"SUMIF(البينات!$A$3:$A$29,A20,البينات!$C$3:$C$29)","v":0},0]
[null,null,{"$f":"SUMIF(البينات!$A$3:$A$29,A21,البينات!$C$3:$C$29)","v":0},0]
[null,null,{"$f":"SUMIF(البينات!$A$3:$A$29,A22,البينات!$C$3:$C$29)","v":0},0]
[null,null,{"$f":"SUMIF(البينات!$A$3:$A$29,A23,البينات!$C$3:$C$29)","v":0},0]
[null,null,{"$f":"SUMIF(البينات!$A$3:$A$29,A24,البينات!$C$3:$C$29)","v":0},0]
[null,null,{"$f":"SUMIF(البينات!$A$3:$A$29,A25,البينات!$C$3:$C$29)","v":0},0]
[null,null,{"$f":"SUMIF(البينات!$A$3:$A$29,A26,البينات!$C$3:$C$29)","v":0},0]
[null,null,null,{"$f":"SUM(D4:D26)","v":0}]

{"sheet":"اليوم5","index":4,"n_rows":27,"n_cols":4,"rows_kept":27,"cut":false,"hidden":false,"merged":[]}
[]
[]
["التعينات","الكمية","السعر","المجموع"]
[null,null,{"$f":"SUMIF(البينات!$A$3:$A$29,A4,البينات!$C$3:$C$29)","v":0},{"$f":"+C4*B4","v":0}]
[null,null,{"$f":"SUMIF(البينات!$A$3:$A$29,A5,البينات!$C$3:$C$29)","v":0},{"$f":"+C5*B5","v":0}]
[null,null,{"$f":"SUMIF(البينات!$A$3:$A$29,A6,البينات!$C$3:$C$29)","v":0},0]
[null,null,{"$f":"SUMIF(البينات!$A$3:$A$29,A7,البينات!$C$3:$C$29)","v":0},0]
[null,null,{"$f":"SUMIF(البينات!$A$3:$A$29,A8,البينات!$C$3:$C$29)","v":0},0]
[null,null,{"$f":"SUMIF(البينات!$A$3:$A$29,A9,البينات!$C$3:$C$29)","v":0},0]
[null,null,{"$f":"SUMIF(البينات!$A$3:$A$29,A10,البينات!$C$3:$C$29)","v":0},0]
[null,null,{"$f":"SUMIF(البينات!$A$3:$A$29,A11,البينات!$C$3:$C$29)","v":0},0]
[null,null,{"$f":"SUMIF(البينات!$A$3:$A$29,A12,البينات!$C$3:$C$29)","v":0},0]
[null,null,{"$f":"SUMIF(البينات!$A$3:$A$29,A13,البينات!$C$3:$C$29)","v":0},0]
[null,null,{"$f":"SUMIF(البينات!$A$3:$A$29,A14,البينات!$C$3:$C$29)","v":0},0]
[null,null,{"$f":"SUMIF(البينات!$A$3:$A$29,A15,البينات!$C$3:$C$29)","v":0},0]
[null,null,{"$f":"SUMIF(البينات!$A$3:$A$29,A16,البينات!$C$3:$C$29)","v":0},0]
[null,null,{"$f":"SUMIF(البينات!$A$3:$A$29,A17,البينات!$C$3:$C$29)","v":0},0]
[null,null,{"$f":"SUMIF(البينات!$A$3:$A$29,A18,البينات!$C$3:$C$29)","v":0},0]
[null,null,{"$f":"SUMIF(البينات!$A$3:$A$29,A19,البينات!$C$3:$C$29)","v":0},0]
[null,null,{"$f":"SUMIF(البينات!$A$3:$A$29,A20,البينات!$C$3:$C$29)","v":0},0]
[null,null,{"$f":"SUMIF(البينات!$A$3:$A$29,A21,البينات!$C$3:$C$29)","v":0},0]
[null,null,{"$f":"SUMIF(البينات!$A$3:$A$29,A22,البينات!$C$3:$C$29)","v":0},0]
[null,null,{"$f":"SUMIF(البينات!$A$3:$A$29,A23,البينات!$C$3:$C$29)","v":0},0]
[null,null,{"$f":"SUMIF(البينات!$A$3:$A$29,A24,البينات!$C$3:$C$29)","v":0},0]
[null,null,{"$f":"SUMIF(البينات!$A$3:$A$29,A25,البينات!$C$3:$C$29)","v":0},0]
[null,null,{"$f":"SUMIF(البينات!$A$3:$A$29,A26,البينات!$C$3:$C$29)","v":0},0]
[null,null,null,{"$f":"SUM(D4:D26)","v":0}]

{"sheet":"اليوم6 ","index":5,"n_rows":27,"n_cols":4,"rows_kept":27,"cut":false,"hidden":false,"merged":[]}
[]
[]
["التعينات","الكمية","السعر","المجموع"]
[null,null,{"$f":"SUMIF(البينات!$A$3:$A$29,A4,البينات!$C$3:$C$29)","v":0},{"$f":"+C4*B4","v":0}]
[null,null,{"$f":"SUMIF(البينات!$A$3:$A$29,A5,البينات!$C$3:$C$29)","v":0},{"$f":"+C5*B5","v":0}]
[null,null,{"$f":"SUMIF(البينات!$A$3:$A$29,A6,البينات!$C$3:$C$29)","v":0},0]
[null,null,{"$f":"SUMIF(البينات!$A$3:$A$29,A7,البينات!$C$3:$C$29)","v":0},0]
[null,null,{"$f":"SUMIF(البينات!$A$3:$A$29,A8,البينات!$C$3:$C$29)","v":0},0]
[null,null,{"$f":"SUMIF(البينات!$A$3:$A$29,A9,البينات!$C$3:$C$29)","v":0},0]
[null,null,{"$f":"SUMIF(البينات!$A$3:$A$29,A10,البينات!$C$3:$C$29)","v":0},0]
[null,null,{"$f":"SUMIF(البينات!$A$3:$A$29,A11,البينات!$C$3:$C$29)","v":0},0]
[null,null,{"$f":"SUMIF(البينات!$A$3:$A$29,A12,البينات!$C$3:$C$29)","v":0},0]
[null,null,{"$f":"SUMIF(البينات!$A$3:$A$29,A13,البينات!$C$3:$C$29)","v":0},0]
[null,null,{"$f":"SUMIF(البينات!$A$3:$A$29,A14,البينات!$C$3:$C$29)","v":0},0]
[null,null,{"$f":"SUMIF(البينات!$A$3:$A$29,A15,البينات!$C$3:$C$29)","v":0},0]
[null,null,{"$f":"SUMIF(البينات!$A$3:$A$29,A16,البينات!$C$3:$C$29)","v":0},0]
[null,null,{"$f":"SUMIF(البينات!$A$3:$A$29,A17,البينات!$C$3:$C$29)","v":0},0]
[null,null,{"$f":"SUMIF(البينات!$A$3:$A$29,A18,البينات!$C$3:$C$29)","v":0},0]
[null,null,{"$f":"SUMIF(البينات!$A$3:$A$29,A19,البينات!$C$3:$C$29)","v":0},0]
[null,null,{"$f":"SUMIF(البينات!$A$3:$A$29,A20,البينات!$C$3:$C$29)","v":0},0]
[null,null,{"$f":"SUMIF(البينات!$A$3:$A$29,A21,البينات!$C$3:$C$29)","v":0},0]
[null,null,{"$f":"SUMIF(البينات!$A$3:$A$29,A22,البينات!$C$3:$C$29)","v":0},0]
[null,null,{"$f":"SUMIF(البينات!$A$3:$A$29,A23,البينات!$C$3:$C$29)","v":0},0]
[null,null,{"$f":"SUMIF(البينات!$A$3:$A$29,A24,البينات!$C$3:$C$29)","v":0},0]
[null,null,{"$f":"SUMIF(البينات!$A$3:$A$29,A25,البينات!$C$3:$C$29)","v":0},0]
[null,null,{"$f":"SUMIF(البينات!$A$3:$A$29,A26,البينات!$C$3:$C$29)","v":0},0]
[null,null,null,{"$f":"SUM(D4:D26)","v":0}]

{"sheet":"اليوم7","index":6,"n_rows":27,"n_cols":4,"rows_kept":27,"cut":false,"hidden":false,"merged":[]}
[]
[]
["التعينات","الكمية","السعر","المجموع"]
[null,null,{"$f":"SUMIF(البينات!$A$3:$A$29,A4,البينات!$C$3:$C$29)","v":0},{"$f":"+C4*B4","v":0}]
[null,null,{"$f":"SUMIF(البينات!$A$3:$A$29,A5,البينات!$C$3:$C$29)","v":0},{"$f":"+C5*B5","v":0}]
[null,null,{"$f":"SUMIF(البينات!$A$3:$A$29,A6,البينات!$C$3:$C$29)","v":0},0]
[null,null,{"$f":"SUMIF(البينات!$A$3:$A$29,A7,البينات!$C$3:$C$29)","v":0},0]
[null,null,{"$f":"SUMIF(البينات!$A$3:$A$29,A8,البينات!$C$3:$C$29)","v":0},0]
[null,null,{"$f":"SUMIF(البينات!$A$3:$A$29,A9,البينات!$C$3:$C$29)","v":0},0]
[null,null,{"$f":"SUMIF(البينات!$A$3:$A$29,A10,البينات!$C$3:$C$29)","v":0},0]
[null,null,{"$f":"SUMIF(البينات!$A$3:$A$29,A11,البينات!$C$3:$C$29)","v":0},0]
[null,null,{"$f":"SUMIF(البينات!$A$3:$A$29,A12,البينات!$C$3:$C$29)","v":0},0]
[null,null,{"$f":"SUMIF(البينات!$A$3:$A$29,A13,البينات!$C$3:$C$29)","v":0},0]
[null,null,{"$f":"SUMIF(البينات!$A$3:$A$29,A14,البينات!$C$3:$C$29)","v":0},0]
[null,null,{"$f":"SUMIF(البينات!$A$3:$A$29,A15,البينات!$C$3:$C$29)","v":0},0]
[null,null,{"$f":"SUMIF(البينات!$A$3:$A$29,A16,البينات!$C$3:$C$29)","v":0},0]
[null,null,{"$f":"SUMIF(البينات!$A$3:$A$29,A17,البينات!$C$3:$C$29)","v":0},0]
[null,null,{"$f":"SUMIF(البينات!$A$3:$A$29,A18,البينات!$C$3:$C$29)","v":0},0]
[null,null,{"$f":"SUMIF(البينات!$A$3:$A$29,A19,البينات!$C$3:$C$29)","v":0},0]
[null,null,{"$f":"SUMIF(البينات!$A$3:$A$29,A20,البينات!$C$3:$C$29)","v":0},0]
[null,null,{"$f":"SUMIF(البينات!$A$3:$A$29,A21,البينات!$C$3:$C$29)","v":0},0]
[null,null,{"$f":"SUMIF(البينات!$A$3:$A$29,A22,البينات!$C$3:$C$29)","v":0},0]
[null,null,{"$f":"SUMIF(البينات!$A$3:$A$29,A23,البينات!$C$3:$C$29)","v":0},0]
[null,null,{"$f":"SUMIF(البينات!$A$3:$A$29,A24,البينات!$C$3:$C$29)","v":0},0]
[null,null,{"$f":"SUMIF(البينات!$A$3:$A$29,A25,البينات!$C$3:$C$29)","v":0},0]
[null,null,{"$f":"SUMIF(البينات!$A$3:$A$29,A26,البينات!$C$3:$C$29)","v":0},0]
[null,null,null,{"$f":"SUM(D4:D26)","v":0}]

{"sheet":"اليوم8","index":7,"n_rows":27,"n_cols":4,"rows_kept":27,"cut":false,"hidden":false,"merged":[]}
[]
[]
["التعينات","الكمية","السعر","المجموع"]
[null,null,{"$f":"SUMIF(البينات!$A$3:$A$29,A4,البينات!$C$3:$C$29)","v":0},{"$f":"+C4*B4","v":0}]
[null,null,{"$f":"SUMIF(البينات!$A$3:$A$29,A5,البينات!$C$3:$C$29)","v":0},{"$f":"+C5*B5","v":0}]
[null,null,{"$f":"SUMIF(البينات!$A$3:$A$29,A6,البينات!$C$3:$C$29)","v":0},0]
[null,null,{"$f":"SUMIF(البينات!$A$3:$A$29,A7,البينات!$C$3:$C$29)","v":0},0]
[null,null,{"$f":"SUMIF(البينات!$A$3:$A$29,A8,البينات!$C$3:$C$29)","v":0},0]
[null,null,{"$f":"SUMIF(البينات!$A$3:$A$29,A9,البينات!$C$3:$C$29)","v":0},0]
[null,null,{"$f":"SUMIF(البينات!$A$3:$A$29,A10,البينات!$C$3:$C$29)","v":0},0]
[null,null,{"$f":"SUMIF(البينات!$A$3:$A$29,A11,البينات!$C$3:$C$29)","v":0},0]
[null,null,{"$f":"SUMIF(البينات!$A$3:$A$29,A12,البينات!$C$3:$C$29)","v":0},0]
[null,null,{"$f":"SUMIF(البينات!$A$3:$A$29,A13,البينات!$C$3:$C$29)","v":0},0]
[null,null,{"$f":"SUMIF(البينات!$A$3:$A$29,A14,البينات!$C$3:$C$29)","v":0},0]
[null,null,{"$f":"SUMIF(البينات!$A$3:$A$29,A15,البينات!$C$3:$C$29)","v":0},0]
[null,null,{"$f":"SUMIF(البينات!$A$3:$A$29,A16,البينات!$C$3:$C$29)","v":0},0]
[null,null,{"$f":"SUMIF(البينات!$A$3:$A$29,A17,البينات!$C$3:$C$29)","v":0},0]
[null,null,{"$f":"SUMIF(البينات!$A$3:$A$29,A18,البينات!$C$3:$C$29)","v":0},0]
[null,null,{"$f":"SUMIF(البينات!$A$3:$A$29,A19,البينات!$C$3:$C$29)","v":0},0]
[null,null,{"$f":"SUMIF(البينات!$A$3:$A$29,A20,البينات!$C$3:$C$29)","v":0},0]
[null,null,{"$f":"SUMIF(البينات!$A$3:$A$29,A21,البينات!$C$3:$C$29)","v":0},0]
[null,null,{"$f":"SUMIF(البينات!$A$3:$A$29,A22,البينات!$C$3:$C$29)","v":0},0]
[null,null,{"$f":"SUMIF(البينات!$A$3:$A$29,A23,البينات!$C$3:$C$29)","v":0},0]
[null,null,{"$f":"SUMIF(البينات!$A$3:$A$29,A24,البينات!$C$3:$C$29)","v":0},0]
[null,null,{"$f":"SUMIF(البينات!$A$3:$A$29,A25,البينات!$C$3:$C$29)","v":0},0]
[null,null,{"$f":"SUMIF(البينات!$A$3:$A$29,A26,البينات!$C$3:$C$29)","v":0},0]
[null,null,null,{"$f":"SUM(D4:D26)","v":0}]

{"sheet":"اليوم9","index":8,"n_rows":27,"n_cols":4,"rows_kept":27,"cut":false,"hidden":false,"merged":[]}
[]
[]
["التعينات","الكمية","السعر","المجموع"]
[null,null,{"$f":"SUMIF(البينات!$A$3:$A$29,A4,البينات!$C$3:$C$29)","v":0},{"$f":"+C4*B4","v":0}]
[null,null,{"$f":"SUMIF(البينات!$A$3:$A$29,A5,البينات!$C$3:$C$29)","v":0},{"$f":"+C5*B5","v":0}]
[null,null,{"$f":"SUMIF(البينات!$A$3:$A$29,A6,البينات!$C$3:$C$29)","v":0},0]
[null,null,{"$f":"SUMIF(البينات!$A$3:$A$29,A7,البينات!$C$3:$C$29)","v":0},0]
[null,null,{"$f":"SUMIF(البينات!$A$3:$A$29,A8,البينات!$C$3:$C$29)","v":0},0]
[null,null,{"$f":"SUMIF(البينات!$A$3:$A$29,A9,البينات!$C$3:$C$29)","v":0},0]
[null,null,{"$f":"SUMIF(البينات!$A$3:$A$29,A10,البينات!$C$3:$C$29)","v":0},0]
[null,null,{"$f":"SUMIF(البينات!$A$3:$A$29,A11,البينات!$C$3:$C$29)","v":0},0]
[null,null,{"$f":"SUMIF(البينات!$A$3:$A$29,A12,البينات!$C$3:$C$29)","v":0},0]
[null,null,{"$f":"SUMIF(البينات!$A$3:$A$29,A13,البينات!$C$3:$C$29)","v":0},0]
[null,null,{"$f":"SUMIF(البينات!$A$3:$A$29,A14,البينات!$C$3:$C$29)","v":0},0]
[null,null,{"$f":"SUMIF(البينات!$A$3:$A$29,A15,البينات!$C$3:$C$29)","v":0},0]
[null,null,{"$f":"SUMIF(البينات!$A$3:$A$29,A16,البينات!$C$3:$C$29)","v":0},0]
[null,null,{"$f":"SUMIF(البينات!$A$3:$A$29,A17,البينات!$C$3:$C$29)","v":0},0]
[null,null,{"$f":"SUMIF(البينات!$A$3:$A$29,A18,البينات!$C$3:$C$29)","v":0},0]
[null,null,{"$f":"SUMIF(البينات!$A$3:$A$29,A19,البينات!$C$3:$C$29)","v":0},0]
[null,null,{"$f":"SUMIF(البينات!$A$3:$A$29,A20,البينات!$C$3:$C$29)","v":0},0]
[null,null,{"$f":"SUMIF(البينات!$A$3:$A$29,A21,البينات!$C$3:$C$29)","v":0},0]
[null,null,{"$f":"SUMIF(البينات!$A$3:$A$29,A22,البينات!$C$3:$C$29)","v":0},0]
[null,null,{"$f":"SUMIF(البينات!$A$3:$A$29,A23,البينات!$C$3:$C$29)","v":0},0]
[null,null,{"$f":"SUMIF(البينات!$A$3:$A$29,A24,البينات!$C$3:$C$29)","v":0},0]
[null,null,{"$f":"SUMIF(البينات!$A$3:$A$29,A25,البينات!$C$3:$C$29)","v":0},0]
[null,null,{"$f":"SUMIF(البينات!$A$3:$A$29,A26,البينات!$C$3:$C$29)","v":0},0]
[null,null,null,{"$f":"SUM(D4:D26)","v":0}]

{"sheet":"اليوم10","index":9,"n_rows":27,"n_cols":4,"rows_kept":27,"cut":false,"hidden":false,"merged":[]}
[]
[]
["التعينات","الكمية","السعر","المجموع"]
[null,null,{"$f":"SUMIF(البينات!$A$3:$A$29,A4,البينات!$C$3:$C$29)","v":0},{"$f":"+C4*B4","v":0}]
[null,null,{"$f":"SUMIF(البينات!$A$3:$A$29,A5,البينات!$C$3:$C$29)","v":0},{"$f":"+C5*B5","v":0}]
[null,null,{"$f":"SUMIF(البينات!$A$3:$A$29,A6,البينات!$C$3:$C$29)","v":0},0]
[null,null,{"$f":"SUMIF(البينات!$A$3:$A$29,A7,البينات!$C$3:$C$29)","v":0},0]
[null,null,{"$f":"SUMIF(البينات!$A$3:$A$29,A8,البينات!$C$3:$C$29)","v":0},0]
[null,null,{"$f":"SUMIF(البينات!$A$3:$A$29,A9,البينات!$C$3:$C$29)","v":0},0]
[null,null,{"$f":"SUMIF(البينات!$A$3:$A$29,A10,البينات!$C$3:$C$29)","v":0},0]
[null,null,{"$f":"SUMIF(البينات!$A$3:$A$29,A11,البينات!$C$3:$C$29)","v":0},0]
[null,null,{"$f":"SUMIF(البينات!$A$3:$A$29,A12,البينات!$C$3:$C$29)","v":0},0]
[null,null,{"$f":"SUMIF(البينات!$A$3:$A$29,A13,البينات!$C$3:$C$29)","v":0},0]
[null,null,{"$f":"SUMIF(البينات!$A$3:$A$29,A14,البينات!$C$3:$C$29)","v":0},0]
[null,null,{"$f":"SUMIF(البينات!$A$3:$A$29,A15,البينات!$C$3:$C$29)","v":0},0]
[null,null,{"$f":"SUMIF(البينات!$A$3:$A$29,A16,البينات!$C$3:$C$29)","v":0},0]
[null,null,{"$f":"SUMIF(البينات!$A$3:$A$29,A17,البينات!$C$3:$C$29)","v":0},0]
[null,null,{"$f":"SUMIF(البينات!$A$3:$A$29,A18,البينات!$C$3:$C$29)","v":0},0]
[null,null,{"$f":"SUMIF(البينات!$A$3:$A$29,A19,البينات!$C$3:$C$29)","v":0},0]
[null,null,{"$f":"SUMIF(البينات!$A$3:$A$29,A20,البينات!$C$3:$C$29)","v":0},0]
[null,null,{"$f":"SUMIF(البينات!$A$3:$A$29,A21,البينات!$C$3:$C$29)","v":0},0]
[null,null,{"$f":"SUMIF(البينات!$A$3:$A$29,A22,البينات!$C$3:$C$29)","v":0},0]
[null,null,{"$f":"SUMIF(البينات!$A$3:$A$29,A23,البينات!$C$3:$C$29)","v":0},0]
[null,null,{"$f":"SUMIF(البينات!$A$3:$A$29,A24,البينات!$C$3:$C$29)","v":0},0]
[null,null,{"$f":"SUMIF(البينات!$A$3:$A$29,A25,البينات!$C$3:$C$29)","v":0},0]
[null,null,{"$f":"SUMIF(البينات!$A$3:$A$29,A26,البينات!$C$3:$C$29)","v":0},0]
[null,null,null,{"$f":"SUM(D4:D26)","v":0}]

{"sheet":"المجموع","index":10,"n_rows":201,"n_cols":21,"rows_kept":201,"cut":false,"hidden":false,"merged":[[0,12,0,13],[0,14,0,15],[0,16,0,17],[0,18,0,19],[0,0,0,1],[0,2,0,3],[0,4,0,5],[0,6,0,7],[0,8,0,9],[0,10,0,11]]}
["اليوم1",null,"اليوم2",null,"اليوم3",null,"اليوم4",null,"اليوم5",null,"اليوم6",null,"اليوم7",null,"اليوم8",null,"اليوم9",null,"اليوم10"]
["التعينات","الكمية","التعينات","الكمية","التعينات","الكمية","التعينات","الكمية","التعينات","الكمية","التعينات","الكمية","التعينات","الكمية","التعينات","الكمية","التعينات","الكمية","التعينات","الكمية","المجموع"]
[null,null,null,null,null,null,null,null,null,null,null,null,null,null,null,null,null,null,null,null,{"$f":"+T3+R3+P3+N3+L3+J3+H3+F3+D3+B3","v":0}]
[null,null,null,null,null,null,null,null,null,null,null,null,null,null,null,null,null,null,null,null,{"$f":"+T4+R4+P4+N4+L4+J4+H4+F4+D4+B4","v":0}]
[null,null,null,null,null,null,null,null,null,null,null,null,null,null,null,null,null,null,null,null,0]
[null,null,null,null,null,null,null,null,null,null,null,null,null,null,null,null,null,null,null,null,0]
[null,null,null,null,null,null,null,null,null,null,null,null,null,null,null,null,null,null,null,null,0]
[null,null,null,null,null,null,null,null,null,null,null,null,null,null,null,null,null,null,null,null,0]
[null,null,null,null,null,null,null,null,null,null,null,null,null,null,null,null,null,null,null,null,0]
[null,null,null,null,null,null,null,null,null,null,null,null,null,null,null,null,null,null,null,null,0]
[null,null,null,null,null,null,null,null,null,null,null,null,null,null,null,null,null,null,null,null,0]
[null,null,null,null,null,null,null,null,null,null,null,null,null,null,null,null,null,null,null,null,0]
[null,null,null,null,null,null,null,null,null,null,null,null,null,null,null,null,null,null,null,null,0]
[null,null,null,null,null,null,null,null,null,null,null,null,null,null,null,null,null,null,null,null,0]
[null,null,null,null,null,null,null,null,null,null,null,null,null,null,null,null,null,null,null,null,0]
[null,null,null,null,null,null,null,null,null,null,null,null,null,null,null,null,null,null,null,null,0]
[null,null,null,null,null,null,null,null,null,null,null,null,null,null,null,null,null,null,null,null,0]
[null,null,null,null,null,null,null,null,null,null,null,null,null,null,null,null,null,null,null,null,0]
[null,null,null,null,null,null,null,null,null,null,null,null,null,null,null,null,null,null,null,null,0]
[null,null,null,null,null,null,null,null,null,null,null,null,null,null,null,null,null,null,null,null,0]
[null,null,null,null,null,null,null,null,null,null,null,null,null,null,null,null,null,null,null,null,0]
[null,null,null,null,null,null,null,null,null,null,null,null,null,null,null,null,null,null,null,null,0]
[null,null,null,null,null,null,null,null,null,null,null,null,null,null,null,null,null,null,null,null,0]
[null,null,null,null,null,null,null,null,null,null,null,null,null,null,null,null,null,null,null,null,0]
[null,null,null,null,null,null,null,null,null,null,null,null,null,null,null,null,null,null,null,null,0]
[null,null,null,null,null,null,null,null,null,null,null,null,null,null,null,null,null,null,null,null,0]
[null,null,null,null,null,null,null,null,null,null,null,null,null,null,null,null,null,null,null,null,0]
[null,null,null,null,null,null,null,null,null,null,null,null,null,null,null,null,null,null,null,null,0]
[null,null,null,null,null,null,null,null,null,null,null,null,null,null,null,null,null,null,null,null,0]
[null,null,null,null,null,null,null,null,null,null,null,null,null,null,null,null,null,null,null,null,0]
[null,null,null,null,null,null,null,null,null,null,null,null,null,null,null,null,null,null,null,null,0]
[null,null,null,null,null,null,null,null,null,null,null,null,null,null,null,null,null,null,null,null,0]
[null,null,null,null,null,null,null,null,null,null,null,null,null,null,null,null,null,null,null,null,0]
[null,null,null,null,null,null,null,null,null,null,null,null,null,null,null,null,null,null,null,null,0]
[null,null,null,null,null,null,null,null,null,null,null,null,null,null,null,null,null,null,null,null,0]
[null,null,null,null,null,null,null,null,null,null,null,null,null,null,null,null,null,null,null,null,0]
[null,null,null,null,null,null,null,null,null,null,null,null,null,null,null,null,null,null,null,null,0]
[null,null,null,null,null,null,null,null,null,null,null,null,null,null,null,null,null,null,null,null,0]
[null,null,null,null,null,null,null,null,null,null,null,null,null,null,null,null,null,null,null,null,0]
[null,null,null,null,null,null,null,null,null,null,null,null,null,null,null,null,null,null,null,null,0]
[null,null,null,null,null,null,null,null,null,null,null,null,null,null,null,null,null,null,null,null,0]
[null,null,null,null,null,null,null,null,null,null,null,null,null,null,null,null,null,null,null,null,0]
[null,null,null,null,null,null,null,null,null,null,null,null,null,null,null,null,null,null,null,null,0]
[null,null,null,null,null,null,null,null,null,null,null,null,null,null,null,null,null,null,null,null,0]
[null,null,null,null,null,null,null,null,null,null,null,null,null,null,null,null,null,null,null,null,0]
[null,null,null,null,null,null,null,null,null,null,null,null,null,null,null,null,null,null,null,null,0]
[null,null,null,null,null,null,null,null,null,null,null,null,null,null,null,null,null,null,null,null,0]
[null,null,null,null,null,null,null,null,null,null,null,null,null,null,null,null,null,null,null,null,0]
[null,null,null,null,null,null,null,null,null,null,null,null,null,null,null,null,null,null,null,null,0]
[null,null,null,null,null,null,null,null,null,null,null,null,null,null,null,null,null,null,null,null,0]
[null,null,null,null,null,null,null,null,null,null,null,null,null,null,null,null,null,null,null,null,0]
[null,null,null,null,null,null,null,null,null,null,null,null,null,null,null,null,null,null,null,null,0]
[null,null,null,null,null,null,null,null,null,null,null,null,null,null,null,null,null,null,null,null,0]
[null,null,null,null,null,null,null,null,null,null,null,null,null,null,null,null,null,null,null,null,0]
[null,null,null,null,null,null,null,null,null,null,null,null,null,null,null,null,null,null,null,null,0]
[null,null,null,null,null,null,null,null,null,null,null,null,null,null,null,null,null,null,null,null,0]
[null,null,null,null,null,null,null,null,null,null,null,null,null,null,null,null,null,null,null,null,0]
[null,null,null,null,null,null,null,null,null,null,null,null,null,null,null,null,null,null,null,null,0]
[null,null,null,null,null,null,null,null,null,null,null,null,null,null,null,null,null,null,null,null,0]
[null,null,null,null,null,null,null,null,null,null,null,null,null,null,null,null,null,null,null,null,0]
[null,null,null,null,null,null,null,null,null,null,null,null,null,null,null,null,null,null,null,null,0]
[null,null,null,null,null,null,null,null,null,null,null,null,null,null,null,null,null,null,null,null,0]
[null,null,null,null,null,null,null,null,null,null,null,null,null,null,null,null,null,null,null,null,0]
[null,null,null,null,null,null,null,null,null,null,null,null,null,null,null,null,null,null,null,null,0]
[null,null,null,null,null,null,null,null,null,null,null,null,null,null,null,null,null,null,null,null,0]
[null,null,null,null,null,null,null,null,null,null,null,null,null,null,null,null,null,null,null,null,0]
[null,null,null,null,null,null,null,null,null,null,null,null,null,null,null,null,null,null,null,null,0]
[null,null,null,null,null,null,null,null,null,null,null,null,null,null,null,null,null,null,null,null,{"$f":"+T68+R68+P68+N68+L68+J68+H68+F68+D68+B68","v":0}]
[null,null,null,null,null,null,null,null,null,null,null,null,null,null,null,null,null,null,null,null,0]
[null,null,null,null,null,null,null,null,null,null,null,null,null,null,null,null,null,null,null,null,0]
[null,null,null,null,null,null,null,null,null,null,null,null,null,null,null,null,null,null,null,null,0]
[null,null,null,null,null,null,null,null,null,null,null,null,null,null,null,null,null,null,null,null,0]
[null,null,null,null,null,null,null,null,null,null,null,null,null,null,null,null,null,null,null,null,0]
[null,null,null,null,null,null,null,null,null,null,null,null,null,null,null,null,null,null,null,null,0]
[null,null,null,null,null,null,null,null,null,null,null,null,null,null,null,null,null,null,null,null,0]
[null,null,null,null,null,null,null,null,null,null,null,null,null,null,null,null,null,null,null,null,0]
[null,null,null,null,null,null,null,null,null,null,null,null,null,null,null,null,null,null,null,null,0]
[null,null,null,null,null,null,null,null,null,null,null,null,null,null,null,null,null,null,null,null,0]
[null,null,null,null,null,null,null,null,null,null,null,null,null,null,null,null,null,null,null,null,0]
[null,null,null,null,null,null,null,null,null,null,null,null,null,null,null,null,null,null,null,null,0]
[null,null,null,null,null,null,null,null,null,null,null,null,null,null,null,null,null,null,null,null,0]
[null,null,null,null,null,null,null,null,null,null,null,null,null,null,null,null,null,null,null,null,0]
[null,null,null,null,null,null,null,null,null,null,null,null,null,null,null,null,null,null,null,null,0]
[null,null,null,null,null,null,null,null,null,null,null,null,null,null,null,null,null,null,null,null,0]
[null,null,null,null,null,null,null,null,null,null,null,null,null,null,null,null,null,null,null,null,0]
[null,null,null,null,null,null,null,null,null,null,null,null,null,null,null,null,null,null,null,null,0]
[null,null,null,null,null,null,null,null,null,null,null,null,null,null,null,null,null,null,null,null,0]
[null,null,null,null,null,null,null,null,null,null,null,null,null,null,null,null,null,null,null,null,0]
[null,null,null,null,null,null,null,null,null,null,null,null,null,null,null,null,null,null,null,null,0]
[null,null,null,null,null,null,null,null,null,null,null,null,null,null,null,null,null,null,null,null,0]
[null,null,null,null,null,null,null,null,null,null,null,null,null,null,null,null,null,null,null,null,0]
[null,null,null,null,null,null,null,null,null,null,null,null,null,null,null,null,null,null,null,null,0]
[null,null,null,null,null,null,null,null,null,null,null,null,null,null,null,null,null,null,null,null,0]
[null,null,null,null,null,null,null,null,null,null,null,null,null,null,null,null,null,null,null,null,0]
[null,null,null,null,null,null,null,null,null,null,null,null,null,null,null,null,null,null,null,null,0]
[null,null,null,null,null,null,null,null,null,null,null,null,null,null,null,null,null,null,null,null,0]
[null,null,null,null,null,null,null,null,null,null,null,null,null,null,null,null,null,null,null,null,0]
[null,null,null,null,null,null,null,null,null,null,null,null,null,null,null,null,null,null,null,null,0]
[null,null,null,null,null,null,null,null,null,null,null,null,null,null,null,null,null,null,null,null,0]
[null,null,null,null,null,null,null,null,null,null,null,null,null,null,null,null,null,null,null,null,0]
[null,null,null,null,null,null,null,null,null,null,null,null,null,null,null,null,null,null,null,null,0]
[null,null,null,null,null,null,null,null,null,null,null,null,null,null,null,null,null,null,null,null,0]
[null,null,null,null,null,null,null,null,null,null,null,null,null,null,null,null,null,null,null,null,0]
[null,null,null,null,null,null,null,null,null,null,null,null,null,null,null,null,null,null,null,null,0]
[null,null,null,null,null,null,null,null,null,null,null,null,null,null,null,null,null,null,null,null,0]
[null,null,null,null,null,null,null,null,null,null,null,null,null,null,null,null,null,null,null,null,0]
[null,null,null,null,null,null,null,null,null,null,null,null,null,null,null,null,null,null,null,null,0]
[null,null,null,null,null,null,null,null,null,null,null,null,null,null,null,null,null,null,null,null,0]
[null,null,null,null,null,null,null,null,null,null,null,null,null,null,null,null,null,null,null,null,0]
[null,null,null,null,null,null,null,null,null,null,null,null,null,null,null,null,null,null,null,null,0]
[null,null,null,null,null,null,null,null,null,null,null,null,null,null,null,null,null,null,null,null,0]
[null,null,null,null,null,null,null,null,null,null,null,null,null,null,null,null,null,null,null,null,0]
[null,null,null,null,null,null,null,null,null,null,null,null,null,null,null,null,null,null,null,null,0]
[null,null,null,null,null,null,null,null,null,null,null,null,null,null,null,null,null,null,null,null,0]
[null,null,null,null,null,null,null,null,null,null,null,null,null,null,null,null,null,null,null,null,0]
[null,null,null,null,null,null,null,null,null,null,null,null,null,null,null,null,null,null,null,null,0]
[null,null,null,null,null,null,null,null,null,null,null,null,null,null,null,null,null,null,null,null,0]
[null,null,null,null,null,null,null,null,null,null,null,null,null,null,null,null,null,null,null,null,0]
[null,null,null,null,null,null,null,null,null,null,null,null,null,null,null,null,null,null,null,null,0]
[null,null,null,null,null,null,null,null,null,null,null,null,null,null,null,null,null,null,null,null,0]
[null,null,null,null,null,null,null,null,null,null,null,null,null,null,null,null,null,null,null,null,0]
[null,null,null,null,null,null,null,null,null,null,null,null,null,null,null,null,null,null,null,null,0]
[null,null,null,null,null,null,null,null,null,null,null,null,null,null,null,null,null,null,null,null,0]
[null,null,null,null,null,null,null,null,null,null,null,null,null,null,null,null,null,null,null,null,0]
[null,null,null,null,null,null,null,null,null,null,null,null,null,null,null,null,null,null,null,null,0]
[null,null,null,null,null,null,null,null,null,null,null,null,null,null,null,null,null,null,null,null,0]
[null,null,null,null,null,null,null,null,null,null,null,null,null,null,null,null,null,null,null,null,0]
[null,null,null,null,null,null,null,null,null,null,null,null,null,null,null,null,null,null,null,null,0]
[null,null,null,null,null,null,null,null,null,null,null,null,null,null,null,null,null,null,null,null,0]
[null,null,null,null,null,null,null,null,null,null,null,null,null,null,null,null,null,null,null,null,0]
[null,null,null,null,null,null,null,null,null,null,null,null,null,null,null,null,null,null,null,null,0]
[null,null,null,null,null,null,null,null,null,null,null,null,null,null,null,null,null,null,null,null,{"$f":"+T132+R132+P132+N132+L132+J132+H132+F132+D132+B132","v":0}]
[null,null,null,null,null,null,null,null,null,null,null,null,null,null,null,null,null,null,null,null,0]
[null,null,null,null,null,null,null,null,null,null,null,null,null,null,null,null,null,null,null,null,0]
[null,null,null,null,null,null,null,null,null,null,null,null,null,null,null,null,null,null,null,null,0]
[null,null,null,null,null,null,null,null,null,null,null,null,null,null,null,null,null,null,null,null,0]
[null,null,null,null,null,null,null,null,null,null,null,null,null,null,null,null,null,null,null,null,0]
[null,null,null,null,null,null,null,null,null,null,null,null,null,null,null,null,null,null,null,null,0]
[null,null,null,null,null,null,null,null,null,null,null,null,null,null,null,null,null,null,null,null,0]
[null,null,null,null,null,null,null,null,null,null,null,null,null,null,null,null,null,null,null,null,0]
[null,null,null,null,null,null,null,null,null,null,null,null,null,null,null,null,null,null,null,null,0]
[null,null,null,null,null,null,null,null,null,null,null,null,null,null,null,null,null,null,null,null,0]
[null,null,null,null,null,null,null,null,null,null,null,null,null,null,null,null,null,null,null,null,0]
[null,null,null,null,null,null,null,null,null,null,null,null,null,null,null,null,null,null,null,null,0]
[null,null,null,null,null,null,null,null,null,null,null,null,null,null,null,null,null,null,null,null,0]
[null,null,null,null,null,null,null,null,null,null,null,null,null,null,null,null,null,null,null,null,0]
[null,null,null,null,null,null,null,null,null,null,null,null,null,null,null,null,null,null,null,null,0]
[null,null,null,null,null,null,null,null,null,null,null,null,null,null,null,null,null,null,null,null,0]
[null,null,null,null,null,null,null,null,null,null,null,null,null,null,null,null,null,null,null,null,0]
[null,null,null,null,null,null,null,null,null,null,null,null,null,null,null,null,null,null,null,null,0]
[null,null,null,null,null,null,null,null,null,null,null,null,null,null,null,null,null,null,null,null,0]
[null,null,null,null,null,null,null,null,null,null,null,null,null,null,null,null,null,null,null,null,0]
[null,null,null,null,null,null,null,null,null,null,null,null,null,null,null,null,null,null,null,null,0]
[null,null,null,null,null,null,null,null,null,null,null,null,null,null,null,null,null,null,null,null,0]
[null,null,null,null,null,null,null,null,null,null,null,null,null,null,null,null,null,null,null,null,0]
[null,null,null,null,null,null,null,null,null,null,null,null,null,null,null,null,null,null,null,null,0]
[null,null,null,null,null,null,null,null,null,null,null,null,null,null,null,null,null,null,null,null,0]
[null,null,null,null,null,null,null,null,null,null,null,null,null,null,null,null,null,null,null,null,0]
[null,null,null,null,null,null,null,null,null,null,null,null,null,null,null,null,null,null,null,null,0]
[null,null,null,null,null,null,null,null,null,null,null,null,null,null,null,null,null,null,null,null,0]
[null,null,null,null,null,null,null,null,null,null,null,null,null,null,null,null,null,null,null,null,0]
[null,null,null,null,null,null,null,null,null,null,null,null,null,null,null,null,null,null,null,null,0]
[null,null,null,null,null,null,null,null,null,null,null,null,null,null,null,null,null,null,null,null,0]
[null,null,null,null,null,null,null,null,null,null,null,null,null,null,null,null,null,null,null,null,0]
[null,null,null,null,null,null,null,null,null,null,null,null,null,null,null,null,null,null,null,null,0]
[null,null,null,null,null,null,null,null,null,null,null,null,null,null,null,null,null,null,null,null,0]
[null,null,null,null,null,null,null,null,null,null,null,null,null,null,null,null,null,null,null,null,0]
[null,null,null,null,null,null,null,null,null,null,null,null,null,null,null,null,null,null,null,null,0]
[null,null,null,null,null,null,null,null,null,null,null,null,null,null,null,null,null,null,null,null,0]
[null,null,null,null,null,null,null,null,null,null,null,null,null,null,null,null,null,null,null,null,0]
[null,null,null,null,null,null,null,null,null,null,null,null,null,null,null,null,null,null,null,null,0]
[null,null,null,null,null,null,null,null,null,null,null,null,null,null,null,null,null,null,null,null,0]
[null,null,null,null,null,null,null,null,null,null,null,null,null,null,null,null,null,null,null,null,0]
[null,null,null,null,null,null,null,null,null,null,null,null,null,null,null,null,null,null,null,null,0]
[null,null,null,null,null,null,null,null,null,null,null,null,null,null,null,null,null,null,null,null,0]
[null,null,null,null,null,null,null,null,null,null,null,null,null,null,null,null,null,null,null,null,0]
[null,null,null,null,null,null,null,null,null,null,null,null,null,null,null,null,null,null,null,null,0]
[null,null,null,null,null,null,null,null,null,null,null,null,null,null,null,null,null,null,null,null,0]
[null,null,null,null,null,null,null,null,null,null,null,null,null,null,null,null,null,null,null,null,0]
[null,null,null,null,null,null,null,null,null,null,null,null,null,null,null,null,null,null,null,null,0]
[null,null,null,null,null,null,null,null,null,null,null,null,null,null,null,null,null,null,null,null,0]
[null,null,null,null,null,null,null,null,null,null,null,null,null,null,null,null,null,null,null,null,0]
[null,null,null,null,null,null,null,null,null,null,null,null,null,null,null,null,null,null,null,null,0]
[null,null,null,null,null,null,null,null,null,null,null,null,null,null,null,null,null,null,null,null,0]
[null,null,null,null,null,null,null,null,null,null,null,null,null,null,null,null,null,null,null,null,0]
[null,null,null,null,null,null,null,null,null,null,null,null,null,null,null,null,null,null,null,null,0]
[null,null,null,null,null,null,null,null,null,null,null,null,null,null,null,null,null,null,null,null,0]
[null,null,null,null,null,null,null,null,null,null,null,null,null,null,null,null,null,null,null,null,0]
[null,null,null,null,null,null,null,null,null,null,null,null,null,null,null,null,null,null,null,null,0]
[null,null,null,null,null,null,null,null,null,null,null,null,null,null,null,null,null,null,null,null,0]
[null,null,null,null,null,null,null,null,null,null,null,null,null,null,null,null,null,null,null,null,0]
[null,null,null,null,null,null,null,null,null,null,null,null,null,null,null,null,null,null,null,null,0]
[null,null,null,null,null,null,null,null,null,null,null,null,null,null,null,null,null,null,null,null,0]
[null,null,null,null,null,null,null,null,null,null,null,null,null,null,null,null,null,null,null,null,0]
[null,null,null,null,null,null,null,null,null,null,null,null,null,null,null,null,null,null,null,null,0]
[null,null,null,null,null,null,null,null,null,null,null,null,null,null,null,null,null,null,null,null,{"$f":"+T196+R196+P196+N196+L196+J196+H196+F196+D196+B196","v":0}]
[null,null,null,null,null,null,null,null,null,null,null,null,null,null,null,null,null,null,null,null,0]
[null,null,null,null,null,null,null,null,null,null,null,null,null,null,null,null,null,null,null,null,0]
[null,null,null,null,null,null,null,null,null,null,null,null,null,null,null,null,null,null,null,null,0]
[null,null,null,null,null,null,null,null,null,null,null,null,null,null,null,null,null,null,null,null,0]
[null,null,null,null,null,null,null,null,null,null,null,null,null,null,null,null,null,null,null,null,0]